[Event "The Schackveckan 2023: Chessweek Elo-tournaments Group 2"]
[Site "Göteborgs schackcentrum, Vegagatan 20, Gothenburg, Sweden"]
[Date "2023.08.11"]
[Round "7.6"]
[White "Andreasson, Emanuel"]
[Black "Dahlin, Emil"]
[Result "1/2-1/2"]
[TimeControl "90 minutes for 40 moves + 30 minutes for the rest of the game + 30 seconds per move from move one."]
[WhiteFideId "1759620"]
[BlackFideId "1771035"]
[WhiteElo "1367"]
[BlackElo "1284"]

1. e4 {[%clk 01:30:59]} {[%emt 00:21:36]} e5 {[%clk 01:30:55]} {[%emt
00:00:05]} 2. Nc3 {[%clk 01:31:26]} {[%emt 00:00:03]} Nf6 {[%clk 01:31:01]}
{[%emt 00:00:24]} 3. f4 {[%clk 01:31:52]} {[%emt 00:00:04]} d5 {[%clk
01:30:57]} {[%emt 00:00:34]} 4. fxe5 {[%clk 01:32:17]} {[%emt 00:00:04]} Nxe4
{[%clk 01:30:58]} {[%emt 00:00:30]} 5. Qf3 {[%clk 01:32:42]} {[%emt 00:00:04]}
Nc6 {[%clk 01:30:44]} {[%emt 00:00:44]} 6. Bb5 {[%clk 01:33:02]} {[%emt
00:00:10]} Nxc3 {[%clk 01:28:24]} {[%emt 00:02:51]} 7. dxc3 {[%clk 01:33:26]}
{[%emt 00:00:06]} Qh4+ {[%clk 01:27:40]} {[%emt 00:01:13]} 8. g3 {[%clk
01:32:05]} {[%emt 00:01:51]} Qe4+ {[%clk 01:27:31]} {[%emt 00:00:40]} 9. Be3
{[%clk 01:30:09]} {[%emt 00:02:26]} Bg4 {[%clk 01:15:12]} {[%emt 00:12:50]} 10.
Qxe4 {[%clk 01:22:34]} {[%emt 00:08:04]} dxe4 {[%clk 01:15:29]} {[%emt
00:00:13]} 11. h3 {[%clk 01:21:04]} {[%emt 00:02:00]} Bd7 {[%clk 01:11:43]}
{[%emt 00:04:16]} 12. Bf4 {[%clk 01:14:47]} {[%emt 00:06:47]} O-O-O {[%clk
01:08:26]} {[%emt 00:03:47]} 13. O-O-O {[%clk 00:55:05]} {[%emt 00:20:11]} h6
{[%clk 00:59:05]} {[%emt 00:09:51]} 14. Bxc6 {[%clk 00:49:43]} {[%emt
00:05:53]} Bxc6 {[%clk 00:56:28]} {[%emt 00:03:07]} 15. Ne2 {[%clk 00:48:02]}
{[%emt 00:02:11]} Bc5 {[%clk 00:53:51]} {[%emt 00:03:08]} 16. Nd4 {[%clk
00:42:55]} {[%emt 00:05:36]} Bd5 {[%clk 00:49:12]} {[%emt 00:05:09]} 17. Be3
{[%clk 00:37:12]} {[%emt 00:06:13]} Rhe8 {[%clk 00:39:42]} {[%emt 00:10:00]} 18.
Nf5 {[%clk 00:30:21]} {[%emt 00:07:22]} Bxe3+ {[%clk 00:38:22]} {[%emt
00:01:49]} 19. Nxe3 {[%clk 00:30:36]} {[%emt 00:00:14]} Rxe5 {[%clk 00:38:05]}
{[%emt 00:00:48]} 20. Rd2 {[%clk 00:25:51]} {[%emt 00:05:15]} Be6 {[%clk
00:35:12]} {[%emt 00:03:22]} 21. Rxd8+ {[%clk 00:22:22]} {[%emt 00:04:00]} Kxd8
{[%clk 00:35:18]} {[%emt 00:00:24]} 22. h4 {[%clk 00:20:49]} {[%emt 00:02:02]}
g5 {[%clk 00:26:52]} {[%emt 00:08:57]} 23. g4 {[%clk 00:18:52]} {[%emt
00:02:27]} Ke7 {[%clk 00:22:56]} {[%emt 00:04:25]} 24. Kd2 {[%clk 00:18:28]}
{[%emt 00:00:54]} Kf6 {[%clk 00:16:30]} {[%emt 00:06:57]} 25. h5 {[%clk
00:17:57]} {[%emt 00:01:01]} Kg7 {[%clk 00:15:06]} {[%emt 00:01:54]} 26. Rf1
{[%clk 00:17:36]} {[%emt 00:00:52]} Ra5 {[%clk 00:13:50]} {[%emt 00:01:46]} 27.
a3 {[%clk 00:17:07]} {[%emt 00:00:59]} Bd7 {[%clk 00:10:51]} {[%emt 00:03:28]}
28. Ke2 {[%clk 00:15:44]} {[%emt 00:01:53]} f5 {[%clk 00:10:42]} {[%emt
00:00:39]} 29. gxf5 {[%clk 00:13:28]} {[%emt 00:02:47]} Kf6 {[%clk 00:09:14]}
{[%emt 00:01:58]} 30. Ng4+ {[%clk 00:13:18]} {[%emt 00:00:40]} Kg7 {[%clk
00:07:37]} {[%emt 00:02:07]} 31. f6+ {[%clk 00:11:23]} {[%emt 00:02:25]} Kf8
{[%clk 00:06:52]} {[%emt 00:01:15]} 32. Rg1 {[%clk 00:07:49]} {[%emt 00:04:03]}
Bxg4+ {[%clk 00:05:34]} {[%emt 00:01:48]} 33. Rxg4 {[%clk 00:08:15]} {[%emt
00:00:04]} Rf5 {[%clk 00:05:52]} {[%emt 00:00:12]} 34. Rxe4 {[%clk 00:08:03]}
{[%emt 00:00:43]} Rxf6 {[%clk 00:06:13]} {[%emt 00:00:09]} 35. Ra4 {[%clk
00:06:26]} {[%emt 00:02:08]} a6 {[%clk 00:06:08]} {[%emt 00:00:34]} 36. Rb4
{[%clk 00:06:11]} {[%emt 00:00:45]} b6 {[%clk 00:06:20]} {[%emt 00:00:18]} 37.
Ra4 {[%clk 00:06:27]} {[%emt 00:00:14]} a5 {[%clk 00:06:44]} {[%emt 00:00:06]}
38. Rd4 {[%clk 00:06:17]} {[%emt 00:00:39]} Ke7 {[%clk 00:06:59]} {[%emt
00:00:15]} 39. Rd3 {[%clk 00:04:39]} {[%emt 00:02:09]} Rf4 {[%clk 00:06:13]}
{[%emt 00:01:16]} 1/2-1/2